Cogmind - Beta 15 @@@ ROGUE MODE // 2025.07.16 @ 18:56:27 Player: jumpy Result: Destroyed by G-47 Trooper with Particle Gun Performance ------------- Evolutions (2) 1000 Regions Visited (6) 1200 Robots Destroyed (35) 175 Value Destroyed (696) 696 Prototype IDs (23) 460 Alien Tech Used (0) 0 Bonus (27) 27 TOTAL SCORE: 3558 Bonus ------- Follower Combat Kills 27 Cogmind --------- Core Integrity 0/550 Matter 300/300 Energy 172/250 System Corruption 0% Temperature Cool (28) Movement Core (400) Ox7 Location -8/Materials Parts ------- > --- POWER (1) -------- Ion Engine > --- PROPULSION (4) --- (None) > --- UTILITY (4) ------ Medium Storage Unit Makeshift Terrain Scanner Makeshift Terrain Scan Processor > --- WEAPON (2) ------- EM Pulse Cannon > --- INVENTORY (10) --- Makeshift Terrain Scanner Trap Extractor (0/4) PSU Rigger Light Assault Rifle Mini Grenade Launcher Plasma Flamer Peak State ------------ > --- POWER ------------ Light Deuterium Engine > --- PROPULSION ------- Light Treads Light Treads Light Treads Advanced Treads > --- UTILITY ---------- Medium Storage Unit Seismic Detector Improved Targeting Computer > --- WEAPON ----------- Ion Cannon Plasma Flamer > --- INVENTORY -------- Ion Engine Makeshift Terrain Scanner Makeshift Terrain Scanner Makeshift Terrain Scan Processor Trap Extractor PSU Rigger EM Pulse Cannon Light Assault Rifle Mini Grenade Launcher Heavy Hammer [Rating: 24] Favorites ----------- Power Ion Engine Engine Ion Engine Propulsion Light Treads Treads Light Treads Utility Seismic Detector Device Seismic Detector Storage Medium Storage Unit Processor Improved Targeting Computer Weapon Light Assault Rifle Energy Cannon EM Pulse Cannon Ballistic Gun Light Assault Rifle Special Weapon Plasma Flamer Impact Weapon Heavy Hammer Slashing Weapon Scythe Build | -11 -10 -9 -9 -9 -8 -8 ------- Run | Yrd Mat Mat Min Exi Min Mat Slots Evolved 4 | . . 2 . . . 2 Power . | . . . . . . . Propulsion 2 | . . 1 . . . 1 Utility 2 | . . 1 . . . 1 Weapon . | . . . . . . . Parts Attached 25 | 7 1 2 1 1 1 12 Power 5 | 1 . . 1 1 . 2 Engine 5 | 1 . . 1 1 . 2 Core . | . . . . . . . Reactor . | . . . . . . . Propulsion 6 | 2 . 1 . . . 3 Treads 6 | 2 . 1 . . . 3 Leg . | . . . . . . . Wheel . | . . . . . . . Hover . | . . . . . . . Flight . | . . . . . . . Utility 7 | 2 1 1 . . 1 2 Device 3 | 1 . . . . 1 1 Storage 2 | 1 1 . . . . . Processor 2 | . . 1 . . . 1 Hackware . | . . . . . . . Protection . | . . . . . . . Artifact . | . . . . . . . Weapon 7 | 2 . . . . . 5 Energy Gun . | . . . . . . . Energy Cannon 2 | . . . . . . 2 Ballistic Gun 2 | 2 . . . . . . Ballistic Cannon . | . . . . . . . Launcher . | . . . . . . . Special Weapon 1 | . . . . . . 1 Impact Weapon 1 | . . . . . . 1 Slashing Weapon 1 | . . . . . . 1 Piercing Weapon . | . . . . . . . Special Melee Weapon . | . . . . . . . Unidentified Prototypes . | . . . . . . . Parts Lost 10 | . . . . . . 10 Power 1 | . . . . . . 1 Propulsion 5 | . . . . . . 5 Utility 2 | . . . . . . 2 Weapon 2 | . . . . . . 2 Highest Loss Streak 7 | . . . . . . 7 To Critical Strikes . | . . . . . . . Average Backups 8 | 3 6 7 9 10 10 8 Power . | . 1 1 1 1 1 . Propulsion 1 | 1 2 2 2 1 . . Utility 3 | . 2 3 3 4 5 4 Weapon 2 | . 1 1 2 3 3 3 Tool/Special . | . . . . . . . Unused Backups 12 | 1 . . 2 4 . 5 Power . | . . . . . . . Propulsion 2 | . . . . 2 . . Utility 5 | . . . . 2 . 3 Weapon 5 | 1 . . 2 . . 2 Tool/Special . | . . . . . . . Average Slot Usage (%) 88 | . 100 95 100 100 100 54 Engine 10 | . 14 11 11 11 11 7 Treads 26 | . 28 33 33 33 33 11 Device 10 | . 14 11 11 11 11 6 Storage 10 | . 14 11 11 11 11 9 Processor 7 | . . 6 11 11 11 6 Energy Cannon 2 | . . . . . . 8 Ballistic Gun 17 | . 28 22 22 22 22 1 Peak Build Rating 24 | 7 8 10 11 13 13 24 Average Rating 11 | 6 7 9 10 12 13 15 On Entrance 8 | . 7 8 10 11 13 13 Naked Turns . | . . . . . . . Heaviest Build 28 | 13 18 18 18 18 18 28 Greatest Support 82 | 40 40 60 60 60 60 82 Greatest Overweight (x) 7 | . . . . . . 7 Average Overweight (x) . | . . . . . . 2 Largest Inventory Capacity 10 | 8 10 10 10 10 10 10 Average Capacity 9 | 7 8 10 10 10 10 10 Most Carried 10 | 6 8 7 10 10 10 10 Average Carried 8 | 3 6 7 9 9 10 8 Final Capacity 10 | 8 10 10 10 10 10 10 Final Carried 10 | 6 8 7 10 10 10 6 Class Distribution -------------------- 100% | Mutant Dominant Class ---------------- Mutant | -10/Materials Mutant | -9/Materials Mutant | -9/Mines Mutant | -9/Exiles Mutant | -8/Mines Mutant | -8/Materials Resources | -11 -10 -9 -9 -9 -8 -8 ----------- Run | Yrd Mat Mat Min Exi Min Mat Matter Collected 562 | 320 26 42 13 . 60 101 Remotely . | . . . . . . . Salvage Created 1023 | 186 91 105 . . 181 460 Parts 77 | 18 8 12 . . 11 28 Haulers Intercepted 1 | . 1 . . . . . Recyclers Shooed . | . . . . . . . Parts Field Recycled . | . . . . . . . Retrieved Matter . | . . . . . . . Parts Self-Destructed . | . . . . . . . Prevented . | . . . . . . . Kills | -11 -10 -9 -9 -9 -8 -8 ------- Run | Yrd Mat Mat Min Exi Min Mat Combat Hostiles Destroyed 25 | . 3 5 . . 6 11 Melee 5 | . . . . . . 5 Guns 14 | . 3 5 . . 6 . Cannons 2 | . . . . . . 2 AOE 1 | . . . . . . 1 Classes Destroyed 7 | 2 2 1 . . 1 1 Tunneler 6 | 6 . . . . . . Hauler 1 | . 1 . . . . . Recycler 2 | 1 . . . . . 1 Watcher 1 | . . . . . . 1 Swarmer 15 | . 3 4 . . 4 4 Grunt 6 | . . . . . 2 4 Sentry 4 | . . 1 . . . 3 Best Kill Streak 6 | 3 3 3 . . 4 6 Combat Bots Only 5 | . 3 3 . . 4 5 Max Kills in Single Turn 2 | 1 2 1 . . 2 1 Gunslinging 1 | . 1 . . . . . Exploded 1 | . . . . . . 1 Melee 1 | . . . . . . 1 Uniques/NPCs Destroyed . | . . . . . . . Combat | -11 -10 -9 -9 -9 -8 -8 -------- Run | Yrd Mat Mat Min Exi Min Mat Hostile Shots Fired 208 | . 6 40 . . 33 129 Missed 52 | . 2 11 . . 12 27 Hits 156 | . 4 29 . . 21 102 Projectile 156 | . 4 29 . . 21 102 AOE 1 | . . . . . . 1 Critical Strikes 7 | . . 1 . . 2 4 Damage Taken 2335 | . 38 257 . . 264 1776 Core 665 | . . 48 . . 60 557 Absorbed by Shields . | . . . . . . . Core Remaining (%) 91 | 100 100 . . . 73 . Volleys Fired 84 | 25 8 20 . . 15 16 Largest 2 | 2 2 2 . . 2 2 Hottest 123 | 40 40 40 . . 40 123 Shots Fired 153 | 50 16 40 . . 30 17 Gun 136 | 50 16 40 . . 30 . Cannon 12 | . . . . . . 12 Launcher . | . . . . . . . Special 5 | . . . . . . 5 Kinetic 136 | 50 16 40 . . 30 . Thermal 9 | . . . . . . 9 Explosive . | . . . . . . . Electromagnetic 8 | . . . . . . 8 Robot Hit Streak 14 | 9 4 6 . . 14 10 Robot Miss Streak 3 | 2 1 3 . . 2 1 Penetration Max . | . . . . . . . Secondary Targets 3 | . 1 1 . . 1 . Max Gunslinging Chain 1 | . 1 1 . . 1 . Shots Hit Robots 125 | 33 12 23 . . 23 34 Core Hits 51 | 13 6 10 1 . 10 11 Critical Kills . | . . . . . . . Critical Parts Destroyed 4 | 1 . 1 . . . 2 Critical Strikes 4 | 1 . 1 . . . 2 Destroy 2 | 1 . 1 . . . . Smash 2 | . . . . . . 2 Melee Attacks 35 | . . . . . . 35 Impact 13 | . . . . . . 13 Slashing 22 | . . . . . . 22 Piercing . | . . . . . . . Sneak Attacks 1 | . . . . . . 1 Combat Hostiles . | . . . . . . . Follow-up Attacks . | . . . . . . . Damage Inflicted 1877 | 259 96 202 6 . 227 1087 Guns 784 | 259 96 202 . . 227 . Cannons 270 | . . . . . . 270 Explosions 50 | . . . . . . 50 Melee 711 | . . . . . . 711 Ramming 11 | . . . 6 . . 5 Kinetic 784 | 259 96 202 . . 227 . Thermal 197 | . . . . . . 197 Explosive . | . . . . . . . Electromagnetic 174 | . . . . . . 174 Impact 309 | . . . . . . 309 Slashing 402 | . . . . . . 402 Piercing . | . . . . . . . Highest Corruption . | . . . . . . . Average Corruption . | . . . . . . . Corruption Purged . | . . . . . . . Corruption Blocked . | . . . . . . . Overload Shots . | . . . . . . . Overflow Damage 108 | . . . . . . 108 Projectiles 4 | . . . . . . 4 Explosions . | . . . . . . . Melee 104 | . . . . . . 104 Knockbacks 2 | . . . . . . 2 Impact 2 | . . . . . . 2 Kinetic . | . . . . . . . Secondary . | . . . . . . . Self-Inflicted Damage 40 | . . . . . . 40 Shots 1 | . . . . . . 1 Rammed 4 | . . . 2 . . 2 Targets Rammed 4 | . . . 2 . . 2 Kicked . | . . . . . . . Crushed . | . . . . . . . Highest Temperature 290 | . . 9 . . 25 290 Average Temperature 65 | . . 5 . . 11 90 Received Heat Transfer 942 | . . 54 . . 114 774 Siege Activations . | . . . . . . . Martial Activations . | . . . . . . . Shielding Activations . | . . . . . . . Robots Disrupted . | . . . . . . . Combat Hostiles . | . . . . . . . Robots Corrupted 3 | . . . . . . 3 Combat Hostiles 3 | . . . . . . 3 Parts Fried 2 | . . . . . . 2 Impact Corruptions 5 | . . . . . . 5 Robots Melted . | . . . . . . . Combat Hostiles . | . . . . . . . Parts Melted . | . . . . . . . Heat Transferred 518 | . . . . . . 518 Parts Sabotaged . | . . . . . . . Parts Stolen . | . . . . . . . Parts Stripped . | . . . . . . . Power Chain Reactions 1 | . . . . . . 1 Alert | -11 -10 -9 -9 -9 -8 -8 ------- Run | Yrd Mat Mat Min Exi Min Mat Maximum Alert Level . | . . . . . . . Low Security (%) 100 | 100 100 100 100 . 100 100 Level 1 . | . . . . . . . Level 2 . | . . . . . . . Level 3 . | . . . . . . . Level 4 . | . . . . . . . Level 5 . | . . . . . . . High Security . | . . . . . . . Max Security . | . . . . . . . Peak Influence 188 | 10 70 125 36 . 100 188 Initial 36 | . . . 36 . . 23 Average 37 | . 11 64 4 . 51 76 Influence Increases 841 | 35 83 165 . . 163 395 Destroy 0b10 Robot/C 520 | . 60 100 . . 140 220 Destroy 0b10 Robot/NC 50 | 35 5 . . . . 10 Destroy Leader 114 | . 12 20 . . 20 62 Allied During Kill 3 | . . . . . 3 . Successful Hack 13 | . 6 . . . . 7 Destroy Structure 6 | . . . . . . 6 Lose Combat Pursuer 135 | . . 45 . . . 90 Influence Decreases 757 | 35 83 70 95 . 103 371 Entered New Map 96 | . . . 59 . . 37 Time Decay 538 | 35 83 70 36 . 70 244 Lost Part 90 | . . . . . . 90 Lost Ally 33 | . . . . . 33 . Squads Dispatched 2 | . 1 . . . . 1 Investigation . | . . . . . . . Extermination . | . . . . . . . Reinforcement 2 | . 1 . . . . 1 Assault . | . . . . . . . Garrison . | . . . . . . . Intercept . | . . . . . . . Searches Triggered . | . . . . . . . Construction Impeded . | . . . . . . . Haulers Reinforced . | . . . . . . . Active Scanning Responses . | . . . . . . . Cargo Convoy Interrupts . | . . . . . . . Stealth | -11 -10 -9 -9 -9 -8 -8 --------- Run | Yrd Mat Mat Min Exi Min Mat Distress Signals 3 | . . 1 . . . 2 Communications Jammed . | . . . . . . . Distress Signals . | . . . . . . . Times Spotted 45 | . 5 10 . . 7 23 Peak Tracking Total 10 | . 3 5 . . 4 10 Tactical Retreats 6 | . . 1 . . . 5 Traps | -11 -10 -9 -9 -9 -8 -8 ------- Run | Yrd Mat Mat Min Exi Min Mat Traps Triggered . | . . . . . . . Indirectly . | . . . . . . . Trap Hack Attempts . | . . . . . . . Triggered . | . . . . . . . Disarmed . | . . . . . . . Reprogrammed . | . . . . . . . Reused . | . . . . . . . Traps Extracted . | . . . . . . . Installed . | . . . . . . . Triggered . | . . . . . . . Machines | -11 -10 -9 -9 -9 -8 -8 ---------- Run | Yrd Mat Mat Min Exi Min Mat Machines Disabled . | . . . . . . . Max in Single Turn . | . . . . . . . Machines Repaired . | . . . . . . . Machines Dismantled . | . . . . . . . Machines Sabotaged . | . . . . . . . Overloaded Fab Kills . | . . . . . . . Hacking | -11 -10 -9 -9 -9 -8 -8 --------- Run | Yrd Mat Mat Min Exi Min Mat Machines Accessed 8 | . 4 . . 3 . 1 Terminals 5 | . 4 . . . . 1 Fabricators . | . . . . . . . Repair Stations . | . . . . . . . Recycling Units . | . . . . . . . Scanalyzers . | . . . . . . . Garrison Access . | . . . . . . . Total Hacks 15 | . 8 . . 6 . 1 Successful 9 | . 2 . . 6 . 1 Failed 6 | . 6 . . . . . Catastrophic 2 | . 2 . . . . . Database Lockouts . | . . . . . . . Manual 4 | . 3 . . 1 . . Terminals 9 | . 8 . . . . 1 Fabricators . | . . . . . . . Repair Stations . | . . . . . . . Recycling Units . | . . . . . . . Scanalyzers . | . . . . . . . Garrison Access . | . . . . . . . Terminal Hacks 8 | . 1 . . 6 . 1 Record 5 | . . . . 5 . . Branch Access Points 1 | . . . . . . 1 Hauler Manifests 1 | . 1 . . . . . Proto ID Catalog 1 | . . . . 1 . . Fabricator Hacks . | . . . . . . . Repair Station Hacks . | . . . . . . . Recycling Unit Hacks . | . . . . . . . Scanalyzer . | . . . . . . . Garrison Access Hacks . | . . . . . . . Unauthorized Hacks 1 | . 1 . . . . . Terminals 1 | . 1 . . . . . Assimilate 1 | . 1 . . . . . Fabricators . | . . . . . . . Repair Stations . | . . . . . . . Recycling Units . | . . . . . . . Scanalyzers . | . . . . . . . Garrison Access . | . . . . . . . Data Cores Recovered . | . . . . . . . Used . | . . . . . . . Hacking Detections 3 | . 3 . . . . . Full Trace Events . | . . . . . . . Feedback Events . | . . . . . . . Feedback Blocked . | . . . . . . . Robot Schematics Acquired . | . . . . . . . Robots Built . | . . . . . . . Authchips . | . . . . . . . Time . | . . . . . . . Total Robot Build Rating . | . . . . . . . Part Schematics Acquired . | . . . . . . . Parts Built . | . . . . . . . Authchips . | . . . . . . . Time . | . . . . . . . Total Part Build Rating . | . . . . . . . Parts Repaired . | . . . . . . . Time . | . . . . . . . Parts Recycled . | . . . . . . . Recycled Matter . | . . . . . . . Retrieved Matter . | . . . . . . . Retrieved Components . | . . . . . . . Parts Scanalyzed . | . . . . . . . Part Schematics Acquired . | . . . . . . . Parts Damaged . | . . . . . . . Bothacking | -11 -10 -9 -9 -9 -8 -8 ------------ Run | Yrd Mat Mat Min Exi Min Mat Used RIF Installer . | . . . . . . . Robots Hacked . | . . . . . . . Non-combat . | . . . . . . . Combat . | . . . . . . . Robot Hacks Applied . | . . . . . . . Relay Couplers Released . | . . . . . . . Fabnet Peak Effective % . | . . . . . . . Robots Rewired 3 | . . . . 3 . . Allies Hacked . | . . . . . . . Hacks Repelled . | . . . . . . . Allies | -11 -10 -9 -9 -9 -8 -8 -------- Run | Yrd Mat Mat Min Exi Min Mat Total Allies 3 | . . . . 3 . . Largest Group 3 | . . . . 3 3 . Highest-Rated Group 24 | . . . . 24 24 . Highest-Rated Ally 8 | . . . . 8 8 . Total Orders . | . . . . . . . Ally Attacks 13 | . . . . . 13 . Total Damage 143 | . . . . . 143 . Kills 1 | . . . . . 1 . Allies Corrupted . | . . . . . . . Allies Melted . | . . . . . . . Intel | -11 -10 -9 -9 -9 -8 -8 ------- Run | Yrd Mat Mat Min Exi Min Mat Active Infowar (turns) 2615 | 200 394 183 364 848 153 473 Terrain 169 | . . . . . . 169 Seismic 2446 | 200 394 183 364 848 153 304 Robot Analysis Total . | . . . . . . . Derelict Logs Recovered 1 | . . . 1 . . . Drone Launches . | . . . . . . . Drone Recoveries . | . . . . . . . Exploration | -11 -10 -9 -9 -9 -8 -8 ------------- Run | Yrd Mat Mat Min Exi Min Mat Turns Passed 2927 | 311 394 183 364 848 153 674 Spaces Moved 1435 | 145 200 80 222 514 70 204 Core 82 | 3 . . . . . 79 Treads 1353 | 142 200 80 222 514 70 125 Legs . | . . . . . . . Wheels . | . . . . . . . Hover . | . . . . . . . Flight . | . . . . . . . Fastest Speed 50 | 50 160 160 160 160 160 152 Average Speed 173 | 157 160 160 160 160 160 253 Slowest Speed 400 | 160 160 160 160 160 160 400 Overloaded Moves . | . . . . . . . Propulsion Burnouts . | . . . . . . . Robots Hopped . | . . . . . . . Potential Cave-ins . | . . . . . . . Cave-ins Triggered . | . . . . . . . Exploration Rate (%) 33 | 8 41 9 48 89 23 17 Regions Visited 6 Branch Regions 3 Pre-discovered Areas 1 | . . . 1 . . . Known Exits Taken . | . . . . . . . Unknown Exits Taken 6 | 1 1 1 1 1 1 . Scrap Searched 1 | . . . 1 . . . Spaces Dug . | . . . . . . . Terrain Destroyed 10 | . . . . . . 10 Melee . | . . . . . . . Projectile . | . . . . . . . AOE 10 | . . . . . . 10 Terrain Rammed . | . . . . . . . Walls Destroyed . | . . . . . . . Machines Disabled . | . . . . . . . Actions | -11 -10 -9 -9 -9 -8 -8 --------- Run | Yrd Mat Mat Min Exi Min Mat Total 1691 | 184 262 103 232 544 87 279 Wait 62 | . 51 2 . 3 . 6 Move 1429 | 144 199 79 221 513 69 204 Hop . | . . . . . . . Pick Up 20 | 7 2 . 5 4 1 1 Fast Attach 9 | 7 . 1 . . . 1 Attach 6 | . . 1 . . . 5 Detach . | . . . . . . . Swap 11 | . 1 . 1 1 1 7 Drop 13 | 1 1 . 3 5 1 2 Fire 84 | 25 8 20 . . 15 16 Melee 35 | . . . . . . 35 Ram 2 | . . . . . . 2 Kick . | . . . . . . . Crush 2 | . . . 2 . . . Escape Stasis . | . . . . . . . Rewire 18 | . . . . 18 . . Trap . | . . . . . . . Miscellaneous . | . . . . . . . Route ------- -11/Scrapyard -10/Materials (discovered 2 exits: [*Mat] / [*Min]) -9/Materials -9/Mines (discovered 2 exits: *Mat / *Exi) -9/Exiles -8/Mines -8/Materials (discovered 2 exits: *Sto x2) History --------- Turn | Location | Event 11 | -11/Scrapyard | Discovered new exit (range 16) 312 | -11/Scrapyard | Entered Materials 313 | -10/Materials | Build established: Mutant 392 | -10/Materials | Discovered new exit (range 12) 554 | -10/Materials | Discovered new exit (range 13) 706 | -10/Materials | Entered another Materials area 706 | -9/Materials | Evolved 2 slots: Propulsion x1, Utility x1 709 | -9/Materials | Discovered new exit (range 4) 889 | -9/Materials | Entered Mines 894 | -9/Mines | Met a Derelict bent on vengeance 931 | -9/Mines | Found DCF Scrap (14 items) 976 | -9/Mines | Discovered new exit (range 10) 1087 | -9/Mines | Learned location of Storage (-8) 1152 | -9/Mines | Learned Materials stockpile data 1213 | -9/Mines | A weapon hastily lodged in a ceiling crevice suddenly fell to the ground 1245 | -9/Mines | Deemed a non-threat by the Exiles lab entrance 1247 | -9/Mines | Discovered new exit (range 5) 1253 | -9/Mines | Entered Exiles 1253 | -9/Exiles | Found Exiles lab destroyed 1792 | -9/Exiles | Opened EX-Vault 1801 | -9/Exiles | Found PSU Rigger 2085 | -9/Exiles | Discovered new exit (range 10) 2101 | -9/Exiles | Entered Mines 2101 | -8/Mines | Accompanied by 3 allies 2146 | -8/Mines | Lost 3 allies 2241 | -8/Mines | Discovered new exit (range 8) 2254 | -8/Mines | Entered Materials 2254 | -8/Materials | Evolved 2 slots: Propulsion x1, Utility x1 2464 | -8/Materials | Lost 3 parts (3n) 2523 | -8/Materials | Identified exit to Storage 2588 | -8/Materials | Core integrity fell below 50% 2624 | -8/Materials | Core integrity fell below 20% 2662 | -8/Materials | Lost 7 parts (1p2n2u2w) 2928 | -8/Materials | Destroyed by G-47 Trooper with Particle Gun Last Messages --------------- 02634_ Chain reaction triggered in Imp. Ion Engine. 02634_ Y-45 Defender destroyed. 02642_ R-06 Scavenger collects Imp. Ion Engine. 02660_ G-47 Trooper misfires. 02667_ G-47 Trooper system terminally corrupted. 02675_ U-05 Engineer builds a Wall. 02679_ U-05 Engineer lays Concrete. 02727_ U-05 Engineer builds a Wall. 02740_ U-05 Engineer lays Concrete. 02744_ R-06 Scavenger collects Particle Gun. 02745_ Slammed into R-06 Scavenger. 02748_ Acquired 16 matter. 02769_ Acquired 20 matter. 02783_ R-06 Scavenger collects Heat Sink. 02814_ R-06 Scavenger inserts Particle Gun into recycling unit. 02817_ R-06 Scavenger inserts Heat Sink into recycling unit. 02820_ R-06 Scavenger inserts Corrupted Lgt. Treads into recycling unit. 02821_ Recycling unit begins recycling process. 02823_ R-06 Scavenger inserts Beam Rifle into recycling unit. 02897_ Slammed into U-05 Engineer. Map ----- +----------------------------------------------------+ | ??????????????????????????????????????? | | ??????????????????????????????????????? | | ??????????????????????????????????????? | | ??????????????????????????????????????? | | ??????????????????????????????????????? | | ????????????????????? ???? ?? ?????#??? | | ????????????????????????? ? ?????????? | | ?????????????????? / ??? ?? ??? ?????? | | ????????????????? ? ? #?###??#?#??? | | ?????????????#?#?? ? ?? ###??? ????? | | ????????????????????? ? ### ???????? | | ??????????? ? ?#" # "?"???#? | | ??????#??? ??#?# ?? ?? +? "??? ??? | | ?????????# ? ??# # ? ? ?## | | ???????#?? ? ?? ? # ?## | | ?????? ? ?? ? ? ? # ? ?? #? | | ??????? ? ?#""T""### # ?S"???# | | ?????###### ?##?"??"#?# # ?""??## | | ???# ? # ?? ?###### ?# ##?##?##??# | | ??#??# ?+ ? ? ####### # ###?#?#???? | | ??## # ###### ####? # # #####?###?# | | #????? "" ?##### ?###### ## ######?#### | | ##?? ? "" #?#### #??#######%###?####?#? | | #### #?"T ###### ##?#?##### #########?# | | ???? # "" #?### [ ######### #?####?#?## | | ??#? # "" ###?# > @g ###?####### | | ###? ? ###?# ] a ########### | | ?#?#+#? ?#??###### #######?### | | ########## o #######?### | | ? ?? #?## #### ################# | | ? ?? #######T## """ ""########?# # | | ? ??## #%! %%% "Y" T"#########? # | | ?? ??#### ##### " " ""########?# ? ? | | ??? ####%# ### ############ # | | ?? ? #### ##### [ ###### # ?? # | | ? ?###=##### #?#### # ? ?# | | ? ??###[##### ? + ? ?# | | ? ##?# #?### ############? # # | | ?? ?#??# ##### ### ??# ? ? ? | | ####?#### #???# ### """?#####+?#?#???? | | ###?#?#?# ##### ###? """ #### ? ???? | | #######+##### ###? """ #?## ? ????? | | ### # ?## ?""" #### ? ? ???? | | # # #?# ?#### "?? ????? | | # #%#####??###?## """ ????? | | # """ # ?? ? "???????? | | # """"" + ? ?? ? ??? ??????? | | # """"" # ???? ? ? ????????????? | | # """"" ##??#?#???# ??????????? | | # """ ##???? ???????#?????????? | +----------------------------------------------------+ Best States ------------- Heat Dissipation 31 Energy Generation 14 Energy Capacity 250 Matter Stores 300 Matter Capacity 300 Sight Range 16 Terrain Scan Range 18 Terrain Scan Density 135 Evasion (%) 40 Targeting Accuracy 6 Recoil Reduction 4 Item Schematics ----------------- None Robot Schematics ------------------ None Fabricated ------------ Nothing Repaired ---------- Nothing Alien Tech Used ----------------- None Achievements -------------- None Challenges ------------ None Game ------ Seed MetafiberGaussComputer Manual? 0 Play Time 00:14:04 Cumulative 162.1 hours Start 2025.07.16 @ 18:42:33 End 2025.07.16 @ 18:56:27 Sessions 1 Manual Loads 0 Difficulty Rogue Special Mode None Game No. 405 Rogue 405 Adventurer 0 Explorer 0 Win Type - Total 6 Types 5/0/1/0/0/0/0/0/0/0 Lore% 70 Gallery% 61 Achievement% 48 Wizard Run 0 Options --------- Layout 0 ASCII 0 Keyboard 0 Movement Numpad Keybinds 0 Fullscreen 2 Font 18/Terminus Map View 76x50 Zoom Use 0% Tactical HUD 1 Map Filters NONE Filters SATURATION(100) Steam 1 RUN: ffdf56e3-88c3-4915-b341-4c413008948a